bitfinex/quotes_SOLUSD_20220302
["timestamp","ask_amount","ask_price","bid_price","bid_amount"]
[1646263826986,66.04575278,101.0,100.95,112.9]
[1646263827179,0.25,101.0,100.95,112.9]
[1646263827982,15.1164,101.01,100.95,112.9]
[1646263828181,57.2196544,101.0,100.94,22.869]
[1646263828480,57.4696544,101.0,100.94,22.869]
[1646263828682,62.4196544,101.0,100.94,22.869]
[1646263829684,77.2867544,101.0,100.94,22.869]
[1646263829880,86.5667544,101.0,100.94,22.869]
[1646263830081,4.95,100.99,100.94,22.869]
[1646263830283,5.2,100.99,100.93,0.49516215]
[1646263830482,0.25,100.99,100.93,0.49516215]
[1646263830881,14.23,101.03,100.93,0.49516215]
[1646263831283,49.75734151,101.02,100.93,3.04420218]
[1646263831583,56.23818029,101.0,100.94,5.45]
[1646263831983,4.95,101.03,100.94,5.45]
[1646263832187,19.43,101.03,100.94,5.7]
[1646263832386,19.43,101.03,100.94,5.2]
[1646263832783,19.43,101.03,100.95,23.2248]
[1646263832986,56.87699523,101.02,100.95,23.2248]
[1646263833187,53.58321397,101.0,100.95,23.2248]
[1646263833485,53.83321397,101.0,100.95,23.2248]
[1646263841190,0.85583462,100.99,100.95,23.2248]
[1646263841389,55.593131,100.98,100.95,23.2248]
[1646263841590,55.843131,100.98,100.95,23.2248]
[1646263842191,55.843131,100.98,100.94,4.95]
[1646263842790,0.25,100.98,100.94,4.95]
[1646263842990,0.25,100.99,100.93,0.49516215]
[1646263843189,4.952,101.01,100.93,0.49516215]
[1646263843190,5.202,101.01,100.93,0.49516215]
[1646263843389,5.202,101.01,100.93,23.27316215]
[1646263843592,7.07657915,101.01,100.93,23.27316215]
[1646263843891,57.92752866,101.0,100.93,23.27316215]
[1646263844098,4.952,100.99,100.93,23.27316215]
[1646263844290,5.202,100.99,100.93,23.27316215]
[1646263844992,0.25,100.99,100.93,23.27316215]
[1646263845194,0.25,100.99,100.93,38.88566215]
[1646263845393,4.952,101.02,100.93,139.96470218]
[1646263845593,4.952,101.02,100.93,41.43470218]
[1646263845791,4.952,101.02,100.93,38.88566215]
[1646263845992,65.73229218,101.02,100.93,38.88566215]
[1646263846492,65.73229218,101.02,100.93,38.38566215]
[1646263846693,65.98229218,101.02,100.93,38.38566215]
[1646263846893,80.84639218,101.02,100.93,23.52316215]
[1646263847699,86.05697906,101.02,100.93,23.52316215]
[1646263847896,86.05697906,101.02,100.93,23.27316215]
[1646263848096,1.87457915,101.01,100.93,23.27316215]
[1646263848295,14.8695,100.99,100.93,23.27316215]
[1646263848495,56.71424474,100.97,100.93,23.27316215]
[1646263848696,56.96424474,100.97,100.93,23.27316215]
[1646263849297,56.96424474,100.97,100.93,0.49516215]
[1646263850698,58.83882389,100.97,100.93,0.49516215]
[1646263851997,73.71062389,100.97,100.93,0.49516215]
[1646263853001,78.66262389,100.97,100.93,0.49516215]
[1646263856608,92.89262389,100.97,100.93,0.49516215]
[1646263856808,0.50954284,100.96,100.93,0.49516215]
[1646263857009,4.953,100.95,100.93,0.49516215]
[1646263857310,20.0778,100.95,100.93,0.49516215]
[1646263858011,50.0,100.94,100.88,112.9]
[1646263858209,61.27847279,100.93,100.88,112.9]
[1646263858408,61.52847279,100.93,100.88,112.9]
[1646263859031,61.12215148,100.93,100.88,112.9]
[1646263863837,0.39564094,100.92,100.88,112.9]
[1646263864837,61.12215148,100.93,100.88,112.9]
[1646263867651,4.953,100.95,100.89,0.12686781]
[1646263867850,4.954,100.98,100.88,211.68]
[1646263868049,4.954,100.98,100.89,4.953]
[1646263868251,4.954,100.98,100.89,5.203]
[1646263868449,58.43531499,100.97,100.91,0.5]
[1646263868650,4.953,100.96,100.9,23.2569]
[1646263869052,5.203,100.96,100.9,23.2569]
[1646263873261,0.7894043,100.95,100.9,23.2569]
[1646263873455,5.203,100.96,100.9,23.2569]
[1646263877464,0.25,100.96,100.9,23.2569]
[1646263877658,58.68531499,100.97,100.9,23.2569]
[1646263878061,58.68531499,100.97,100.91,4.953]
[1646263881265,63.63831499,100.97,100.9,23.2569]
[1646263881665,0.41948895,100.96,100.9,23.2569]
[1646263881964,63.63831499,100.97,100.9,23.2569]
[1646263883467,78.51001499,100.97,100.9,23.2569]
[1646263885897,93.57311499,100.97,100.9,23.2569]
[1646263886304,107.80311499,100.97,100.9,23.2569]
[1646263886497,26.69320528,100.96,100.9,23.2569]
[1646263886702,19.8277,100.95,100.9,23.2569]
[1646263886897,20.0777,100.95,100.88,112.9]
[1646263889597,36.18275198,100.95,100.88,112.9]
[1646263889803,3.91058688,100.94,100.88,112.9]
[1646263889997,85.49467303,100.93,100.88,112.9]
[1646263890198,85.74467303,100.93,100.88,112.9]
[1646263891001,87.61972501,100.93,100.86,23.2197]
[1646263891200,101.80782631,100.93,100.86,22.7197]
[1646263891400,0.47005892,100.92,100.86,22.7197]
[1646263891608,19.837,100.91,100.86,22.7197]
[1646263891802,20.087,100.91,100.86,22.7197]
[1646263892503,20.087,100.91,100.85,22.5865]
[1646263892701,0.36625358,100.9,100.85,22.5865]
[1646263892900,8.694,100.9,100.85,22.5865]
[1646263893105,62.10598764,100.89,100.84,112.9]
[1646263893303,77.24078764,100.89,100.84,112.9]
[1646263893501,91.47078764,100.89,100.84,112.9]
[1646263893703,93.34583962,100.89,100.84,112.9]
[1646263893901,112.35494026,100.89,100.84,112.9]
[1646263894801,112.35494026,100.89,100.8,112.9]
[1646263895101,112.35494026,100.89,100.8,112.4]
[1646263895702,5.15727439,100.88,100.8,112.4]
[1646263895903,19.8454,100.87,100.8,112.4]
[1646263896104,20.0954,100.87,100.8,112.4]
[1646263897104,0.25,100.87,100.8,112.65]
[1646263897305,0.25,100.88,100.8,112.65]
[1646263897505,86.51468764,100.89,100.81,24.4912]
[1646263899507,1.87505198,100.88,100.81,24.4912]
[1646263899707,31.24125198,100.88,100.81,24.4912]
[1646263900110,4.958,100.87,100.81,24.4912]
[1646263900310,5.208,100.87,100.81,24.4912]
[1646263900510,19.438,100.87,100.81,24.4912]
[1646263901513,36.19985198,100.87,100.8,112.4]
[1646263902712,38.81043886,100.87,100.8,112.4]
[1646263902915,53.42873886,100.87,100.8,112.4]
[1646263903117,7.18413018,100.86,100.8,112.4]
[1646263903415,49.61546759,100.84,100.79,4.957]
[1646263903613,4.958,100.83,100.79,4.957]
[1646263903814,0.4925493,100.82,100.79,4.957]
[1646263904214,0.25,100.83,100.79,4.957]
[1646263905017,0.25,100.84,100.79,4.957]
[1646263905217,0.25,100.85,100.79,4.957]
[1646263905418,14.23,100.87,100.79,4.957]
[1646263905617,4.958,100.86,100.79,4.957]
[1646263906017,19.8468,100.86,100.78,0.5]
[1646263906216,34.0768,100.86,100.78,0.5]
[1646263906419,36.68738688,100.86,100.78,0.5]
[1646263906718,6.69158088,100.85,100.78,0.5]
[1646263906920,59.65371981,100.83,100.78,0.5]
[1646263907118,59.90371981,100.83,100.77,22.8356]
[1646263910618,59.65371981,100.83,100.77,22.8356]
[1646263911019,64.61371981,100.83,100.77,22.8356]
[1646263911220,4.96,100.83,100.77,22.8356]
[1646263911424,4.96,100.85,100.77,22.8356]
[1646263911842,4.958,100.86,100.77,183.33384204]
[1646263912043,4.958,100.88,100.77,185.88288207]
[1646263912246,0.25,100.86,100.78,84.67285422]
[1646263912443,52.77157234,100.87,100.79,0.5]
[1646263912747,4.958,100.86,100.78,84.92285422]
[1646263912942,5.208,100.86,100.78,84.92285422]
[1646263913144,5.208,100.86,100.78,23.1975]
[1646263913543,25.23509086,100.86,100.78,23.1975]
[1646263913947,40.12319086,100.86,100.78,23.1975]
[1646263914147,20.0961,100.86,100.78,23.1975]
[1646263914347,5.208,100.86,100.78,84.50353835]
[1646263914547,0.25,100.86,100.78,23.4475]
[1646263914750,52.77157234,100.87,100.78,23.4475]
[1646263915147,4.958,100.86,100.78,23.4475]
[1646263915346,5.208,100.86,100.78,23.1975]
[1646263915749,13.41797042,100.86,100.78,23.1975]
[1646263916949,16.2209573,100.86,100.78,23.1975]
[1646263917150,31.1088573,100.86,100.78,23.1975]
[1646263919153,26.1508573,100.86,100.78,23.1975]
[1646263920358,26.1508573,100.86,100.78,23.6975]
[1646263922358,4.958,100.85,100.78,23.6975]
[1646263922660,5.208,100.85,100.78,23.6975]
[1646263922858,0.25,100.85,100.78,23.6975]
[1646263923658,47.22814291,100.86,100.78,23.6975]
[1646263924259,63.55677431,100.86,100.78,23.6975]
[1646263931762,76.98866529,100.86,100.78,23.6975]
[1646263931962,0.48938605,100.85,100.78,0.5]
[1646263932162,56.22633575,100.83,100.78,0.5]
[1646263932363,70.70633575,100.83,100.78,0.5]
[1646263932563,88.41746415,100.83,100.77,27.7946]
[1646263932765,4.96,100.82,100.77,27.7946]
[1646263933068,4.96,100.82,100.75,22.8208]
[1646263933069,25.447,100.82,100.75,22.8208]
[1646263933364,55.75210745,100.81,100.75,22.8208]
[1646263933566,0.4410867,100.8,100.75,22.8208]
[1646263933764,51.10461547,100.78,100.71,112.9]
[1646263933965,58.85205356,100.78,100.71,112.9]
[1646263934366,60.74774209,100.78,100.71,112.9]
[1646263935069,81.67612975,100.78,100.71,112.9]
[1646263935266,4.963,100.77,100.71,112.9]
[1646263935465,14.23,100.76,100.71,112.9]
[1646263935667,16.37549642,100.76,100.71,112.9]
[1646263936067,14.48,100.76,100.71,112.9]
[1646263936267,0.25,100.76,100.71,112.9]
[1646263936466,81.68154998,100.78,100.71,112.9]
[1646263936665,64.88505356,100.78,100.71,113.15]
[1646263936864,50.65505356,100.78,100.71,113.15]
[1646263937069,50.65505356,100.78,100.71,128.0448]
[1646263937266,50.65505356,100.78,100.71,128.5448]
[1646263937868,27.66189098,100.8,100.71,128.5448]
[1646263938067,14.48,100.8,100.71,128.0448]
[1646263938470,14.48,100.8,100.71,128.5448]
[1646263938667,14.48,100.8,100.72,24.4023]
[1646263938868,60.09147718,100.79,100.72,24.6523]
[1646263939068,60.34147718,100.79,100.72,24.6523]
[1646263939469,60.34147718,100.79,100.72,25.1523]
[1646263940070,4.962,100.78,100.72,138.5759]
[1646263940273,0.25,100.79,100.72,40.0459]
[1646263940470,4.962,100.82,100.72,186.98074795]
[1646263940874,4.961,100.83,100.72,186.98074795]
[1646263941072,54.72889155,100.82,100.75,0.5]
[1646263941873,54.72889155,100.82,100.73,122.3149]
[1646263942073,54.72889155,100.82,100.75,0.5]
[1646263942474,54.72889155,100.82,100.75,24.3202]
[1646263942674,54.72889155,100.82,100.75,24.5702]
[1646263943074,19.8526,100.83,100.75,123.1002]
[1646263943274,4.96,100.85,100.76,0.5]
[1646263943478,4.96,100.85,100.75,313.77118049]
[1646263943675,4.96,100.87,100.78,0.5]
[1646263943876,19.188,100.88,100.76,2.79904003]
[1646263944079,59.86962871,100.87,100.76,2.79904003]
[1646263944276,4.958,100.86,100.76,2.79904003]
[1646263944975,4.958,100.86,100.76,3.29904003]
[1646263945177,4.958,100.86,100.76,18.18554003]
[1646263945395,4.958,100.86,100.76,116.71554003]
[1646263945596,4.958,100.86,100.77,48.7039]
[1646263945796,88.98602871,100.87,100.77,48.9539]
[1646263946198,106.07042513,100.87,100.77,48.9539]
[1646263946698,106.32042513,100.87,100.77,48.9539]
[1646263947299,4.958,100.86,100.77,48.9539]
[1646263947503,20.0959,100.86,100.77,48.9539]
[1646263947701,20.0959,100.86,100.77,63.8401]
[1646263948102,20.0959,100.86,100.77,48.9539]
[1646263948303,21.99136563,100.86,100.77,48.9539]
[1646263948703,17.03336563,100.86,100.78,0.5]
[1646263949003,0.25,100.86,100.77,48.9539]
[1646263949203,6.85346563,100.88,100.77,122.5039]
[1646263949405,4.958,100.89,100.78,2.54904003]
[1646263949604,42.7492,100.92,100.8,99.03]
[1646263949605,4.958,100.9,100.8,99.03]
[1646263949903,4.957,100.91,100.8,98.78]
[1646263950306,11.74665354,100.91,100.8,158.1]
[1646263950504,11.74665354,100.91,100.82,98.53]
[1646263950706,4.957,100.91,100.83,22.5706]
[1646263950904,16.65108753,100.92,100.83,22.5706]
[1646263950905,21.60708753,100.92,100.83,28.7946]
[1646263951303,21.60708753,100.92,100.83,186.6446]
[1646263951504,4.956,100.92,100.84,157.85]
[1646263951707,4.956,100.94,100.84,174.81203585]
[1646263951904,280.00592,100.9,100.84,76.28203585]
[1646263952105,280.00592,100.9,100.84,172.33]
[1646263953008,280.00592,100.9,100.86,14.8729]
[1646263953205,280.00592,100.9,100.86,15.1229]
[1646263954408,280.00592,100.9,100.86,0.25]
[1646263954607,280.00592,100.9,100.84,0.25]
[1646263954808,280.00592,100.9,100.83,22.8206]
[1646263956112,280.00592,100.9,100.84,14.875]
[1646263956309,280.00592,100.9,100.84,0.25]
[1646263957110,280.00592,100.9,100.85,5.0]
[1646263957310,280.00592,100.9,100.85,5.25]
[1646263957712,280.00592,100.9,100.85,0.25]
[1646263957912,280.00592,100.9,100.83,37.447]
[1646263958112,280.25592,100.9,100.83,37.447]
[1646263959011,280.25592,100.9,100.84,172.7257]
[1646263959012,280.00592,100.9,100.84,172.7257]
[1646263959212,280.00592,100.9,100.84,160.29364106]
[1646263959416,280.00592,100.9,100.86,157.85]
[1646263959611,280.00592,100.9,100.86,164.715]
[1646263959812,280.00592,100.9,100.86,167.18150664]
[1646263960013,168.13592,100.9,100.86,184.21054667]
[1646263960211,4.956,100.97,100.89,157.85]
[1646263960411,4.956,100.97,100.89,167.341]
[1646263961212,4.953,100.98,100.89,167.341]
[1646263961418,56.03356278,100.97,100.89,167.341]
[1646263961613,4.953,100.96,100.89,167.341]
[1646263962013,4.953,100.96,100.9,14.8663]
[1646263962313,5.203,100.96,100.9,15.1163]
[1646263962914,5.203,100.96,100.9,20.1163]
[1646263963416,5.203,100.96,100.9,118.6463]
[1646263963614,0.55148306,100.95,100.9,20.1163]
[1646263963815,5.203,100.96,100.9,20.1163]
[1646263964017,5.203,100.96,100.9,15.1163]
[1646263965616,0.25,100.96,100.9,15.1163]
[1646263965916,56.28356278,100.97,100.9,15.1163]
[1646263966717,56.28356278,100.97,100.9,0.25]
[1646263966917,56.28356278,100.97,100.89,5.0]
[1646263966918,0.73786205,100.96,100.89,5.25]
[1646263967119,5.69186205,100.96,100.89,5.25]
[1646263967316,5.94186205,100.96,100.89,103.78]
[1646263967519,0.98786205,100.96,100.89,5.25]
[1646263967919,12.37785479,100.99,100.89,59.57]
[1646263968117,0.25,100.99,100.89,75.9634455]
[1646263968318,0.25,100.99,100.91,157.85]
[1646263968519,0.25,100.99,100.92,47.781]
[1646263968718,0.25,100.99,100.92,212.598]
[1646263968919,12.43117287,101.02,100.92,212.598]
[1646263969122,4.953,101.02,100.94,157.85]
[1646263969418,4.95,101.04,100.94,158.1]
[1646263969618,4.95,101.04,100.95,5.0]
[1646263969818,4.95,101.04,100.95,5.25]
[1646263970019,64.04407172,101.04,100.95,98.78]
[1646263970218,64.04407172,101.04,100.95,25.1327]
[1646263971118,71.52905137,101.04,100.95,39.9921]
[1646263971320,86.27769201,101.04,100.95,39.9921]
[1646263971522,86.52769201,101.04,100.95,25.1327]
[1646263971725,86.52769201,101.04,100.95,24.8827]
[1646263971921,0.52689744,101.03,100.95,24.8827]
[1646263972119,0.52689744,101.01,100.95,24.8827]
[1646263972318,4.95,101.0,100.95,24.8827]
[1646263972517,61.24945191,101.0,100.95,24.8827]
[1646263974718,0.6519934,100.99,100.92,28.6397]
[1646263974918,5.6039934,100.99,100.92,23.6397]
[1646263975118,5.8539934,100.99,100.92,23.6397]
[1646263975521,5.202,100.99,100.92,23.6397]
[1646263977622,5.202,100.99,100.92,181.4897]
[1646263977823,0.25,100.99,100.92,102.7756]
[1646263978122,61.24945191,101.0,100.92,100.29544127]
[1646263979530,61.24945191,101.0,100.92,198.82544127]
[1646263979727,4.952,101.02,100.94,157.85]
[1646263979928,4.95,101.03,100.94,165.153]
[1646263980127,14.8612,101.04,100.95,4.95]
[1646263980327,14.8612,101.04,100.95,5.2]
[1646263980728,51.4220974,101.03,100.95,5.2]
[1646263980927,51.4220974,101.03,100.95,28.5751]
[1646263981131,51.4220974,101.03,100.95,43.4347]
[1646263982131,51.6720974,101.03,100.95,43.4347]
[1646263983428,51.4220974,101.03,100.95,43.4347]
[1646263984231,51.4220974,101.03,100.95,38.4847]
[1646263984832,51.6720974,101.03,100.95,38.4847]
[1646263985032,51.6720974,101.03,100.96,4.95]
[1646263985231,51.6720974,101.03,100.96,5.2]
[1646263989935,51.6720974,101.03,100.96,4.95]
[1646263991239,4.95,101.04,100.96,163.05]
[1646263991439,1.89546563,101.07,100.98,157.85]
[1646263991440,4.95,101.07,100.98,157.85]
[1646263991638,12.7794568,101.08,101.0,157.85]
[1646263991839,7.8304568,101.08,101.0,179.629]
[1646263992039,7.8304568,101.08,101.01,2.54904003]
[1646263992241,7.8304568,101.08,101.03,157.85]
[1646263992440,7.8304568,101.08,101.03,179.777]
[1646263992639,7.8304568,101.08,101.06,14.8435]
[1646263992939,7.8304568,101.08,101.07,3.03219997]
[1646263995459,7.8304568,101.08,101.03,80.8011]
[1646263995860,7.8304568,101.08,101.03,223.8041]
[1646263996160,7.8304568,101.08,101.03,120.2741]
[1646263996359,7.8304568,101.08,101.03,60.7041]
[1646263996360,61.63922158,101.07,101.03,60.7041]
[1646263996562,61.63922158,101.07,101.02,14.8483]
[1646263996762,61.63922158,101.07,101.01,59.32]
[1646263997159,7.8304568,101.08,101.01,157.85]
[1646263997363,7.8304568,101.08,101.01,59.32]
[1646263997559,8.0804568,101.08,101.01,59.57]
[1646263998161,7.8304568,101.08,101.01,157.85]
[1646263998359,7.8304568,101.08,101.03,157.85]
[1646263998961,7.8304568,101.08,101.03,172.08]
[1646263999564,7.8304568,101.08,101.03,172.33]
[1646264000065,7.8304568,101.08,101.06,113.3734]
[1646264000264,7.8304568,101.08,101.06,113.6234]
[1646264000864,61.02870821,101.13,101.06,113.6234]
[1646264001064,61.27870821,101.13,101.06,15.0934]
[1646264001265,61.27870821,101.13,101.06,172.9434]
[1646264002669,0.25,101.13,101.06,172.9434]
[1646264002866,4.945,101.14,101.08,98.53]
[1646264003064,4.945,101.16,101.08,98.78]
[1646264003465,19.7851,101.17,101.08,98.78]
[1646264003868,56.60692548,101.16,101.08,206.0536]
[1646264004066,56.60692548,101.16,101.09,172.6889]
[1646264004265,56.60692548,101.16,101.09,158.1]
[1646264005567,56.85692548,101.16,101.09,158.1]
[1646264006171,4.944,101.17,101.11,157.85]
[1646264006470,9.4018452,101.18,101.13,157.85]
[1646264006671,9.4018452,101.18,101.14,112.76]
[1646264006869,9.4018452,101.18,101.14,118.66]
[1646264007872,9.4018452,101.18,101.14,123.602]
[1646264008072,9.4018452,101.18,101.15,59.32]
[1646264008273,9.4018452,101.18,101.15,172.33]
[1646264008472,9.4018452,101.18,101.15,177.33]
[1646264008872,9.4018452,101.18,101.15,19.48]
[1646264009471,9.4018452,101.18,101.15,78.8]
[1646264010173,9.4018452,101.18,101.15,177.33]
[1646264010376,9.4018452,101.18,101.16,6.0]
[1646264010578,9.4018452,101.18,101.16,6.25]
[1646264010773,9.4018452,101.18,101.16,65.57]
[1646264011180,9.4018452,101.18,101.17,162.792]
[1646264011378,9.4018452,101.18,101.17,65.57]
[1646264012477,1.5854546,101.23,101.18,52.83]
[1646264012679,1.5854546,101.23,101.19,64.26]
[1646264012884,1.5854546,101.23,101.19,64.51]
[1646264013280,1.5854546,101.23,101.19,59.57]
[1646264013480,62.70291569,101.23,101.19,59.57]
[1646264014582,62.70291569,101.23,101.19,0.25]
[1646264014782,62.70291569,101.23,101.18,0.25]
[1646264014985,0.3999631,101.22,101.17,5.25]
[1646264015184,0.3999631,101.22,101.17,0.25]
[1646264015385,0.3999631,101.22,101.16,0.25]
[1646264015583,0.3999631,101.22,101.15,5.19]
[1646264015784,62.95291569,101.23,101.15,5.19]
[1646264016485,4.941,101.22,101.15,4.94]
[1646264016685,0.53649462,101.21,101.13,27.907]
[1646264016885,2.44156465,101.21,101.13,27.907]
[1646264017088,2.69156465,101.21,101.14,98.53]
[1646264017286,2.15507003,101.21,101.14,157.85]
[1646264017586,2.15507003,101.21,101.15,4.941]
[1646264017785,2.15507003,101.21,101.15,5.191]
[1646264018186,2.15507003,101.21,101.15,0.25]
[1646264018987,0.25,101.21,101.15,0.25]
[1646264019189,15.0824,101.22,101.14,122.7037]
[1646264019690,15.0824,101.22,101.14,24.1737]
[1646264019890,4.941,101.21,101.14,122.7037]
[1646264020188,5.191,101.21,101.14,24.1737]
[1646264021491,5.191,101.21,101.14,0.25]
[1646264021690,5.191,101.21,101.13,14.23]
[1646264021691,0.37853386,101.2,101.13,0.25]
[1646264021889,0.37853386,101.2,101.12,0.25]
[1646264022090,0.37853386,101.2,101.11,4.942]
[1646264022291,66.04840629,101.18,101.11,4.942]
[1646264022491,66.29840629,101.18,101.1,150.6181]
[1646264022889,66.29840629,101.18,101.1,52.0881]
[1646264023293,68.20347632,101.18,101.1,52.0881]
[1646264023492,68.20347632,101.18,101.1,52.3381]
[1646264024092,83.04177632,101.18,101.1,52.3381]
[1646264025696,83.04177632,101.18,101.1,47.3961]
[1646264026393,19.7818,101.17,101.1,47.3961]
[1646264026603,20.0318,101.17,101.1,47.3961]
[1646264027995,20.0318,101.17,101.1,47.1461]
[1646264029096,20.0318,101.17,101.1,47.3961]
[1646264029297,5.192,101.17,101.1,106.7161]
[1646264029498,0.25,101.17,101.1,106.7161]
[1646264029698,66.29840629,101.18,101.1,106.7161]
[1646264029898,66.29840629,101.18,101.1,115.9351]
[1646264030701,66.29840629,101.18,101.1,214.4651]
[1646264030998,66.29840629,101.18,101.11,6.0]
[1646264031200,66.29840629,101.18,101.11,6.25]
[1646264031399,81.13650629,101.18,101.11,0.25]
[1646264031899,16.13507003,101.17,101.1,4.942]
[1646264032101,0.13795508,101.13,101.08,5.0]
[1646264032302,0.13795508,101.13,101.08,0.25]
[1646264032503,53.69634018,101.13,101.08,0.25]
[1646264032701,53.94634018,101.13,101.08,0.25]
[1646264033503,53.94634018,101.13,101.07,47.5898]
[1646264034203,53.94634018,101.13,101.07,146.1198]
[1646264035404,53.94634018,101.13,101.07,205.4398]
[1646264036206,53.94634018,101.13,101.07,106.9098]
[1646264036607,53.94634018,101.13,101.07,205.4398]
[1646264036807,53.94634018,101.13,101.07,106.9098]
[1646264037407,53.94634018,101.13,101.07,205.4398]
[1646264037606,53.94634018,101.13,101.07,210.4398]
[1646264038311,53.69634018,101.13,101.07,210.4398]
[1646264039207,2.95035518,101.13,101.07,210.4398]
[1646264039410,2.95035518,101.13,101.07,205.4398]
[1646264039610,2.95035518,101.13,101.09,157.85]
[1646264039810,2.95035518,101.13,101.11,157.85]
[1646264040009,2.95035518,101.13,101.11,158.1]
[1646264040210,2.95035518,101.13,101.12,163.89125988]
[1646264040408,2.95035518,101.13,101.12,172.82025988]
[1646264040409,0.00035518,101.13,101.12,172.82025988]
[1646264041809,4.944,101.22,101.13,207.85]
[1646264042010,4.944,101.22,101.14,163.85]
[1646264042211,6.5264546,101.23,101.14,169.1]
[1646264042408,6.5264546,101.23,101.14,216.0481]
[1646264042830,6.5264546,101.23,101.14,230.2781]
[1646264043031,1.5854546,101.23,101.14,234.87669327]
[1646264043234,1.5854546,101.23,101.14,249.70569327]
[1646264043735,1.5854546,101.23,101.14,244.70569327]
[1646264044132,1.5854546,101.23,101.19,157.85]
[1646264044333,1.5854546,101.23,101.19,165.802]
[1646264045332,1.5854546,101.23,101.19,158.1]
[1646264045534,1.5854546,101.23,101.19,0.25]
[1646264045832,67.65749574,101.23,101.18,59.57]
[1646264046032,67.65749574,101.23,101.19,98.53]
[1646264046238,67.65749574,101.23,101.19,0.25]
[1646264047033,1.5854546,101.23,101.19,0.25]
[1646264047433,1.5854546,101.23,101.18,158.1]
[1646264047634,1.5854546,101.23,101.18,0.25]
[1646264047833,1.5854546,101.23,101.16,52.3886]
[1646264048033,64.4515488,101.23,101.16,52.3886]
[1646264048233,64.4515488,101.23,101.17,6.0]
[1646264048433,0.46295889,101.22,101.17,6.25]
[1646264048836,64.4515488,101.23,101.17,6.25]
[1646264049234,64.4515488,101.23,101.17,104.78]
[1646264049638,1.5854546,101.23,101.17,178.33]
[1646264049834,1.5854546,101.23,101.17,193.1546]
[1646264050034,1.5854546,101.23,101.2,162.85]
[1646264050235,1.5854546,101.23,101.21,1.34472136]
[1646264050435,1.5854546,101.23,101.21,1.59472136]
[1646264051038,4.939,101.29,101.23,98.53]
[1646264051236,4.937,101.31,101.26,59.32]
[1646264051442,4.936,101.32,101.26,164.017]
[1646264052036,65.11408133,101.32,101.26,164.017]
[1646264052438,65.36408133,101.32,101.26,164.017]
[1646264054539,65.36408133,101.32,101.27,59.32]
[1646264054739,65.36408133,101.32,101.27,0.25]
[1646264054939,0.43086184,101.31,101.27,0.25]
[1646264055139,60.42808133,101.32,101.23,46.9469]
[1646264055340,60.42808133,101.32,101.24,20.23]
[1646264055540,0.36896871,101.31,101.24,20.48]
[1646264055740,65.36408133,101.32,101.24,20.48]
[1646264055941,65.36408133,101.32,101.25,157.85]
[1646264056143,65.36408133,101.32,101.25,158.1]
[1646264056341,60.42808133,101.32,101.25,158.1]
[1646264056546,60.17808133,101.32,101.25,158.1]
[1646264057142,2.46524011,101.33,101.27,157.85]
[1646264057342,2.46524011,101.33,101.29,59.32]
[1646264057541,2.46524011,101.33,101.3,79.55]
[1646264057742,2.46524011,101.33,101.31,1.0752269]
[1646264057941,2.46524011,101.33,101.31,1.3252269]
[1646264059547,2.46524011,101.38,101.31,1.3252269]
[1646264059747,56.27834192,101.37,101.31,1.3252269]
[1646264060447,56.27834192,101.37,101.32,59.32]
[1646264060650,56.52834192,101.37,101.31,0.25]
[1646264061050,61.46134192,101.37,101.28,45.1784]
[1646264061250,61.46134192,101.37,101.29,0.25]
[1646264061656,61.46134192,101.37,101.29,59.57]
[1646264062249,61.46134192,101.37,101.29,0.25]